Workbook

Sheet Ekipno
C4: HRVATSKI ŠPORTSKO | K4: "LOV RIBE UDICOM NA PLOVAK"
C5: RIBOLOVNI SAVEZ | F5: ŽUPANIJSKA LIGA ŠRS SMŽ 2025.-KADETKINJE
K6: EKIPNI PLASMAN
A8: Red. br. | B8: EKIPA | C8: I. kolo | E8: II. kolo | G8: III. kolo | I8: IV. kolo | K8: V. kolo | M8: VI. kolo | O8: VII. kolo | Q8: VIII. kolo | S8: UKUPNO
C9: STRUŽEC 17.5.2025. | E9: KUPA-SISAK 01.06.2025.
C11: bod | D11: grama | E11: bod | F11: grama | G11: bod | H11: grama | I11: bod | J11: grama | K11: bod | L11: grama | M11: bod | N11: grama | O11: bod | P11: grama | Q11: bod | R11: grama | S11: bod | T11: težina | U11: PLASMAN
A13: 1 | B13: SEDRA-DIVUŠA | C13: 1 | D13: 1210 | E13: 1 | F13: 3690 | S13: =IF(ISNUMBER(C13)=TRUE,SUM(C13,E13,G13,I13,K13,M13,O13,Q13),"") -> 2 | T13: =IF(ISNUMBER(D13)=TRUE,SUM(D13,F13,H13,J13,L13,N13,P13,R13),"") -> 4900 | U13: =IF(ISNUMBER(AA13)= TRUE,AA13,"") -> 1 | W13: =IF(ISNUMBER(S13)=TRUE,S13,"") -> 2 | X13: =IF(ISNUMBER(T13)=TRUE,T13,"") -> 4900 | Y13: =MAX(D13,F13,H13,J13,L13,N13,P13,R13) -> 3690 | Z13: =IF(ISNUMBER(W13)=TRUE,W13-X13/100000-Y13/1000000000,"") -> 1.95099631 | AA13: =IF(ISNUMBER(Z13)=TRUE,RANK(Z13,$Z$13:$Z$27,1),"") -> 1
A14: 2 | B14: SOM-POPOVAČA | C14: 3 | D14: 740 | E14: 2 | F14: 1635 | S14: =IF(ISNUMBER(C14)=TRUE,SUM(C14,E14,G14,I14,K14,M14,O14,Q14),"") -> 5 | T14: =IF(ISNUMBER(D14)=TRUE,SUM(D14,F14,H14,J14,L14,N14,P14,R14),"") -> 2375 | U14: =IF(ISNUMBER(AA14)= TRUE,AA14,"") -> 2 | W14: =IF(ISNUMBER(S14)=TRUE,S14,"") -> 5 | X14: =IF(ISNUMBER(T14)=TRUE,T14,"") -> 2375 | Y14: =MAX(D14,F14,H14,J14,L14,N14,P14,R14) -> 1635 | Z14: =IF(ISNUMBER(W14)=TRUE,W14-X14/100000-Y14/1000000000,"") -> 4.976248365 | AA14: =IF(ISNUMBER(Z14)=TRUE,RANK(Z14,$Z$13:$Z$27,1),"") -> 2
A15: 3 | B15: AMUR-PTK-KUTINA | C15: 2 | D15: 925 | E15: 3 | F15: 1225 | S15: =IF(ISNUMBER(C15)=TRUE,SUM(C15,E15,G15,I15,K15,M15,O15,Q15),"") -> 5 | T15: =IF(ISNUMBER(D15)=TRUE,SUM(D15,F15,H15,J15,L15,N15,P15,R15),"") -> 2150 | U15: =IF(ISNUMBER(AA15)= TRUE,AA15,"") -> 3 | W15: 5 | X15: 2150 | Y15: 1225 | Z15: 4.978498775 | AA15: 3
A16: 4 | S16: =IF(ISNUMBER(C16)=TRUE,SUM(C16,E16,G16,I16,K16,M16,O16,Q16),"") ->  | T16: =IF(ISNUMBER(D16)=TRUE,SUM(D16,F16,H16,J16,L16,N16,P16,R16),"") ->  | U16: =IF(ISNUMBER(AA16)= TRUE,AA16,"") ->  | Y16: 0
A17: 5 | S17: =IF(ISNUMBER(C17)=TRUE,SUM(C17,E17,G17,I17,K17,M17,O17,Q17),"") ->  | T17: =IF(ISNUMBER(D17)=TRUE,SUM(D17,F17,H17,J17,L17,N17,P17,R17),"") ->  | U17: =IF(ISNUMBER(AA17)= TRUE,AA17,"") ->  | Y17: 0
A18: 6 | S18: =IF(ISNUMBER(C18)=TRUE,SUM(C18,E18,G18,I18,K18,M18,O18,Q18),"") ->  | T18: =IF(ISNUMBER(D18)=TRUE,SUM(D18,F18,H18,J18,L18,N18,P18,R18),"") ->  | U18: =IF(ISNUMBER(AA18)= TRUE,AA18,"") ->  | Y18: 0
A19: 7 | S19: =IF(ISNUMBER(C19)=TRUE,SUM(C19,E19,G19,I19,K19,M19,O19,Q19),"") ->  | T19: =IF(ISNUMBER(D19)=TRUE,SUM(D19,F19,H19,J19,L19,N19,P19,R19),"") ->  | U19: =IF(ISNUMBER(AA19)= TRUE,AA19,"") ->  | Y19: 0
A20: 8 | S20: =IF(ISNUMBER(C20)=TRUE,SUM(C20,E20,G20,I20,K20,M20,O20,Q20),"") ->  | T20: =IF(ISNUMBER(D20)=TRUE,SUM(D20,F20,H20,J20,L20,N20,P20,R20),"") ->  | U20: =IF(ISNUMBER(AA20)= TRUE,AA20,"") ->  | Y20: 0
A21: 9 | S21: =IF(ISNUMBER(C21)=TRUE,SUM(C21,E21,G21,I21,K21,M21,O21,Q21),"") ->  | T21: =IF(ISNUMBER(D21)=TRUE,SUM(D21,F21,H21,J21,L21,N21,P21,R21),"") ->  | U21: =IF(ISNUMBER(AA21)= TRUE,AA21,"") ->  | Y21: 0
A22: 10 | S22: =IF(ISNUMBER(C22)=TRUE,SUM(C22,E22,G22,I22,K22,M22,O22,Q22),"") ->  | T22: =IF(ISNUMBER(D22)=TRUE,SUM(D22,F22,H22,J22,L22,N22,P22,R22),"") ->  | U22: =IF(ISNUMBER(AA22)= TRUE,AA22,"") ->  | Y22: 0
A23: 11 | S23: =IF(ISNUMBER(C23)=TRUE,SUM(C23,E23,G23,I23,K23,M23,O23,Q23),"") ->  | T23: =IF(ISNUMBER(D23)=TRUE,SUM(D23,F23,H23,J23,L23,N23,P23,R23),"") ->  | U23: =IF(ISNUMBER(AA23)= TRUE,AA23,"") ->  | Y23: 0
A24: 12 | S24: =IF(ISNUMBER(C24)=TRUE,SUM(C24,E24,G24,I24,K24,M24,O24,Q24),"") ->  | T24: =IF(ISNUMBER(D24)=TRUE,SUM(D24,F24,H24,J24,L24,N24,P24,R24),"") ->  | U24: =IF(ISNUMBER(AA24)= TRUE,AA24,"") ->  | Y24: 0
A25: 13 | S25: =IF(ISNUMBER(C25)=TRUE,SUM(C25,E25,G25,I25,K25,M25,O25,Q25),"") ->  | T25: =IF(ISNUMBER(D25)=TRUE,SUM(D25,F25,H25,J25,L25,N25,P25,R25),"") ->  | U25: =IF(ISNUMBER(AA25)= TRUE,AA25,"") ->  | Y25: 0
A26: 14 | S26: =IF(ISNUMBER(C26)=TRUE,SUM(C26,E26,G26,I26,K26,M26,O26,Q26),"") ->  | T26: =IF(ISNUMBER(D26)=TRUE,SUM(D26,F26,H26,J26,L26,N26,P26,R26),"") ->  | U26: =IF(ISNUMBER(AA26)= TRUE,AA26,"") ->  | Y26: 0
A27: 15 | S27: =IF(ISNUMBER(C27)=TRUE,SUM(C27,E27,G27,I27,K27,M27,O27,Q27),"") ->  | T27: =IF(ISNUMBER(D27)=TRUE,SUM(D27,F27,H27,J27,L27,N27,P27,R27),"") ->  | U27: =IF(ISNUMBER(AA27)= TRUE,AA27,"") ->  | Y27: 0

Sheet Pojedinačno
B1: HRVATSKI ŠPORTSKO | K1: "LOV RIBE UDICOM NA PLOVAK"
B2: RIBOLOVNI SAVEZ | E2: ŽUPANIJSKA LIGA ŠRS SMŽ 2025.-KADETKINJE
K3: POJEDINAČNI PLASMAN
A5: Red. br. | B5: IME I PREZIME | C5: EKIPA | D5: I. kolo | F5: II. kolo | H5: III. kolo | J5: IV. kolo | L5: V. kolo | N5: VI. kolo | P5: VII. kolo | R5: VIII. kolo | T5: UKUPNO
D6: STUŽEC, 17.45.2025. | F6: KUPA-SISAK,1.6.2025.
D8: bod | E8: grama | F8: bod | G8: grama | H8: bod | I8: grama | J8: bod | K8: grama | L8: bod | M8: grama | N8: bod | O8: grama | P8: bod | Q8: grama | R8: bod | S8: grama | T8: bod | U8: težina | V8: PLASMAN
A10: 1 | B10: Lara Žarić | C10: Sedra-Divuša | D10: 2 | E10: 455 | F10: 1 | G10: 2355 | T10: =IF(ISNUMBER(D10)=TRUE,SUM(D10,F10,H10,J10,L10,N10,P10,R10),"") -> 3 | U10: =IF(ISNUMBER(E10)=TRUE,SUM(E10,G10,I10,K10,M10,O10,Q10,S10),"") -> 2810 | V10: =IF(ISNUMBER(AB10)=TRUE,AB10,"") -> 1 | W10: =IF(ISNUMBER(V10)=TRUE,1,"") -> 1 | X10: =IF(ISNUMBER(T10)=TRUE,T10,"") -> 3 | Y10: =IF(ISNUMBER(U10)=TRUE,U10,"") -> 2810 | Z10: =MAX(E10,G10,I10,K10,M10,O10,Q10,S10) -> 2355 | AA10: =IF(ISNUMBER(X10)=TRUE,X10-Y10/100000-Z10/1000000000,"") -> 2.971897645 | AB10: =IF(ISNUMBER(AA10)=TRUE,RANK(AA10,$AA$10:$AA$95,1),"") -> 1
A11: 2 | B11: Lotta Medaković | C11: Som-Popovača | D11: 2 | E11: 210 | F11: 1 | G11: 720 | T11: =IF(ISNUMBER(D11)=TRUE,SUM(D11,F11,H11,J11,L11,N11,P11,R11),"") -> 3 | U11: =IF(ISNUMBER(E11)=TRUE,SUM(E11,G11,I11,K11,M11,O11,Q11,S11),"") -> 930 | V11: =IF(ISNUMBER(AB11)=TRUE,AB11,"") -> 2 | W11: 1 | X11: =IF(ISNUMBER(T11)=TRUE,T11,"") -> 3 | Y11: =IF(ISNUMBER(U11)=TRUE,U11,"") -> 930 | Z11: =MAX(E11,G11,I11,K11,M11,O11,Q11,S11) -> 720 | AA11: =IF(ISNUMBER(X11)=TRUE,X11-Y11/100000-Z11/1000000000,"") -> 2.99069928 | AB11: =IF(ISNUMBER(AA11)=TRUE,RANK(AA11,$AA$10:$AA$95,1),"") -> 2
A12: 3 | B12: Tina Prohaska | C12: Amur-PTK-Kutina | D12: 1 | E12: 255 | F12: 2 | G12: 525 | T12: =IF(ISNUMBER(D12)=TRUE,SUM(D12,F12,H12,J12,L12,N12,P12,R12),"") -> 3 | U12: =IF(ISNUMBER(E12)=TRUE,SUM(E12,G12,I12,K12,M12,O12,Q12,S12),"") -> 780 | V12: =IF(ISNUMBER(AB12)=TRUE,AB12,"") -> 3 | W12: 1 | X12: 3 | Y12: 780 | Z12: 525 | AA12: 2.992199475 | AB12: 3
A13: 4 | B13: Jelena Radojčić | C13: Sedra-Divuša | D13: 1 | E13: 705 | F13: 3 | G13: 500 | T13: =IF(ISNUMBER(D13)=TRUE,SUM(D13,F13,H13,J13,L13,N13,P13,R13),"") -> 4 | U13: =IF(ISNUMBER(E13)=TRUE,SUM(E13,G13,I13,K13,M13,O13,Q13,S13),"") -> 1205 | V13: =IF(ISNUMBER(AB13)=TRUE,AB13,"") -> 4 | W13: 1 | X13: 4 | Y13: 1205 | Z13: 705 | AA13: 3.987949295 | AB13: 4
A14: 5 | B14: Nika Prohaska | C14: Amur-PTK-Kutina | D14: 1 | E14: 670 | F14: 3 | G14: 325 | T14: =IF(ISNUMBER(D14)=TRUE,SUM(D14,F14,H14,J14,L14,N14,P14,R14),"") -> 4 | U14: =IF(ISNUMBER(E14)=TRUE,SUM(E14,G14,I14,K14,M14,O14,Q14,S14),"") -> 995 | V14: =IF(ISNUMBER(AB14)=TRUE,AB14,"") -> 5 | W14: 1 | X14: 4 | Y14: 995 | Z14: 670 | AA14: 3.99004933 | AB14: 5
A15: 6 | B15: Una Sigur | C15: Sedra-Divuša | D15: 3 | E15: 50 | F15: 1 | G15: 835 | T15: =IF(ISNUMBER(D15)=TRUE,SUM(D15,F15,H15,J15,L15,N15,P15,R15),"") -> 4 | U15: =IF(ISNUMBER(E15)=TRUE,SUM(E15,G15,I15,K15,M15,O15,Q15,S15),"") -> 885 | V15: =IF(ISNUMBER(AB15)=TRUE,AB15,"") -> 6 | W15: 1 | X15: 4 | Y15: 885 | Z15: 835 | AA15: 3.991149165 | AB15: 6
A16: 7 | B16: Elena Žabčić | C16: Som-Popovača | D16: 3 | E16: 385 | F16: 2 | G16: 775 | T16: =IF(ISNUMBER(D16)=TRUE,SUM(D16,F16,H16,J16,L16,N16,P16,R16),"") -> 5 | U16: =IF(ISNUMBER(E16)=TRUE,SUM(E16,G16,I16,K16,M16,O16,Q16,S16),"") -> 1160 | V16: =IF(ISNUMBER(AB16)=TRUE,AB16,"") -> 7 | W16: 1 | X16: 5 | Y16: 1160 | Z16: 775 | AA16: 4.988399225 | AB16: 7
A17: 8 | B17: Iva Prohaska | C17: Som-Popovača | D17: 2 | E17: 145 | F17: 3 | G17: 140 | T17: =IF(ISNUMBER(D17)=TRUE,SUM(D17,F17,H17,J17,L17,N17,P17,R17),"") -> 5 | U17: =IF(ISNUMBER(E17)=TRUE,SUM(E17,G17,I17,K17,M17,O17,Q17,S17),"") -> 285 | V17: =IF(ISNUMBER(AB17)=TRUE,AB17,"") -> 8 | W17: 1 | X17: 5 | Y17: 285 | Z17: 145 | AA17: 4.997149855 | AB17: 8
A18: 9 | B18: Matia Klopček | C18: Amur-PTK-Kutina | D18: 4 | E18: 0 | F18: 2 | G18: 375 | T18: =IF(ISNUMBER(D18)=TRUE,SUM(D18,F18,H18,J18,L18,N18,P18,R18),"") -> 6 | U18: =IF(ISNUMBER(E18)=TRUE,SUM(E18,G18,I18,K18,M18,O18,Q18,S18),"") -> 375 | V18: =IF(ISNUMBER(AB18)=TRUE,AB18,"") -> 9 | W18: 1 | X18: 6 | Y18: 375 | Z18: 375 | AA18: 5.996249625 | AB18: 9
A19: 10 | T19: =IF(ISNUMBER(D19)=TRUE,SUM(D19,F19,H19,J19,L19,N19,P19,R19),"") ->  | U19: =IF(ISNUMBER(E19)=TRUE,SUM(E19,G19,I19,K19,M19,O19,Q19,S19),"") ->  | V19: =IF(ISNUMBER(AB19)=TRUE,AB19,"") ->  | Z19: 0
A20: 11 | T20: =IF(ISNUMBER(D20)=TRUE,SUM(D20,F20,H20,J20,L20,N20,P20,R20),"") ->  | U20: =IF(ISNUMBER(E20)=TRUE,SUM(E20,G20,I20,K20,M20,O20,Q20,S20),"") ->  | V20: =IF(ISNUMBER(AB20)=TRUE,AB20,"") ->  | Z20: 0
A21: 12 | T21: =IF(ISNUMBER(D21)=TRUE,SUM(D21,F21,H21,J21,L21,N21,P21,R21),"") ->  | U21: =IF(ISNUMBER(E21)=TRUE,SUM(E21,G21,I21,K21,M21,O21,Q21,S21),"") ->  | V21: =IF(ISNUMBER(AB21)=TRUE,AB21,"") ->  | Z21: 0
A22: 13 | T22: =IF(ISNUMBER(D22)=TRUE,SUM(D22,F22,H22,J22,L22,N22,P22,R22),"") ->  | U22: =IF(ISNUMBER(E22)=TRUE,SUM(E22,G22,I22,K22,M22,O22,Q22,S22),"") ->  | V22: =IF(ISNUMBER(AB22)=TRUE,AB22,"") ->  | Z22: 0
A23: 14 | T23: =IF(ISNUMBER(D23)=TRUE,SUM(D23,F23,H23,J23,L23,N23,P23,R23),"") ->  | U23: =IF(ISNUMBER(E23)=TRUE,SUM(E23,G23,I23,K23,M23,O23,Q23,S23),"") ->  | V23: =IF(ISNUMBER(AB23)=TRUE,AB23,"") ->  | Z23: 0
A24: 15 | T24: =IF(ISNUMBER(D24)=TRUE,SUM(D24,F24,H24,J24,L24,N24,P24,R24),"") ->  | U24: =IF(ISNUMBER(E24)=TRUE,SUM(E24,G24,I24,K24,M24,O24,Q24,S24),"") ->  | V24: =IF(ISNUMBER(AB24)=TRUE,AB24,"") ->  | Z24: 0
A25: 16 | T25: =IF(ISNUMBER(D25)=TRUE,SUM(D25,F25,H25,J25,L25,N25,P25,R25),"") ->  | U25: =IF(ISNUMBER(E25)=TRUE,SUM(E25,G25,I25,K25,M25,O25,Q25,S25),"") ->  | V25: =IF(ISNUMBER(AB25)=TRUE,AB25,"") ->  | Z25: 0
A26: 17 | T26: =IF(ISNUMBER(D26)=TRUE,SUM(D26,F26,H26,J26,L26,N26,P26,R26),"") ->  | U26: =IF(ISNUMBER(E26)=TRUE,SUM(E26,G26,I26,K26,M26,O26,Q26,S26),"") ->  | V26: =IF(ISNUMBER(AB26)=TRUE,AB26,"") ->  | Z26: 0
A27: 18 | T27: =IF(ISNUMBER(D27)=TRUE,SUM(D27,F27,H27,J27,L27,N27,P27,R27),"") ->  | U27: =IF(ISNUMBER(E27)=TRUE,SUM(E27,G27,I27,K27,M27,O27,Q27,S27),"") ->  | V27: =IF(ISNUMBER(AB27)=TRUE,AB27,"") ->  | Z27: 0
A28: 19 | T28: =IF(ISNUMBER(D28)=TRUE,SUM(D28,F28,H28,J28,L28,N28,P28,R28),"") ->  | U28: =IF(ISNUMBER(E28)=TRUE,SUM(E28,G28,I28,K28,M28,O28,Q28,S28),"") ->  | V28: =IF(ISNUMBER(AB28)=TRUE,AB28,"") ->  | Z28: 0
A29: 20 | T29: =IF(ISNUMBER(D29)=TRUE,SUM(D29,F29,H29,J29,L29,N29,P29,R29),"") ->  | U29: =IF(ISNUMBER(E29)=TRUE,SUM(E29,G29,I29,K29,M29,O29,Q29,S29),"") ->  | V29: =IF(ISNUMBER(AB29)=TRUE,AB29,"") ->  | Z29: 0
A30: 21 | T30: =IF(ISNUMBER(D30)=TRUE,SUM(D30,F30,H30,J30,L30,N30,P30,R30),"") ->  | U30: =IF(ISNUMBER(E30)=TRUE,SUM(E30,G30,I30,K30,M30,O30,Q30,S30),"") ->  | V30: =IF(ISNUMBER(AB30)=TRUE,AB30,"") ->  | Z30: 0
A31: 22 | T31: =IF(ISNUMBER(D31)=TRUE,SUM(D31,F31,H31,J31,L31,N31,P31,R31),"") ->  | U31: =IF(ISNUMBER(E31)=TRUE,SUM(E31,G31,I31,K31,M31,O31,Q31,S31),"") ->  | V31: =IF(ISNUMBER(AB31)=TRUE,AB31,"") ->  | Z31: 0
A32: 23 | T32: =IF(ISNUMBER(D32)=TRUE,SUM(D32,F32,H32,J32,L32,N32,P32,R32),"") ->  | U32: =IF(ISNUMBER(E32)=TRUE,SUM(E32,G32,I32,K32,M32,O32,Q32,S32),"") ->  | V32: =IF(ISNUMBER(AB32)=TRUE,AB32,"") ->  | Z32: 0
A33: 24 | T33: =IF(ISNUMBER(D33)=TRUE,SUM(D33,F33,H33,J33,L33,N33,P33,R33),"") ->  | U33: =IF(ISNUMBER(E33)=TRUE,SUM(E33,G33,I33,K33,M33,O33,Q33,S33),"") ->  | V33: =IF(ISNUMBER(AB33)=TRUE,AB33,"") ->  | Z33: 0
A34: 25 | T34: =IF(ISNUMBER(D34)=TRUE,SUM(D34,F34,H34,J34,L34,N34,P34,R34),"") ->  | U34: =IF(ISNUMBER(E34)=TRUE,SUM(E34,G34,I34,K34,M34,O34,Q34,S34),"") ->  | V34: =IF(ISNUMBER(AB34)=TRUE,AB34,"") ->  | Z34: 0
A35: 26 | T35: =IF(ISNUMBER(D35)=TRUE,SUM(D35,F35,H35,J35,L35,N35,P35,R35),"") ->  | U35: =IF(ISNUMBER(E35)=TRUE,SUM(E35,G35,I35,K35,M35,O35,Q35,S35),"") ->  | V35: =IF(ISNUMBER(AB35)=TRUE,AB35,"") ->  | Z35: 0
A36: 27 | T36: =IF(ISNUMBER(D36)=TRUE,SUM(D36,F36,H36,J36,L36,N36,P36,R36),"") ->  | U36: =IF(ISNUMBER(E36)=TRUE,SUM(E36,G36,I36,K36,M36,O36,Q36,S36),"") ->  | V36: =IF(ISNUMBER(AB36)=TRUE,AB36,"") ->  | Z36: 0
A37: 28 | T37: =IF(ISNUMBER(D37)=TRUE,SUM(D37,F37,H37,J37,L37,N37,P37,R37),"") ->  | U37: =IF(ISNUMBER(E37)=TRUE,SUM(E37,G37,I37,K37,M37,O37,Q37,S37),"") ->  | V37: =IF(ISNUMBER(AB37)=TRUE,AB37,"") ->  | Z37: 0
A38: 29 | T38: =IF(ISNUMBER(D38)=TRUE,SUM(D38,F38,H38,J38,L38,N38,P38,R38),"") ->  | U38: =IF(ISNUMBER(E38)=TRUE,SUM(E38,G38,I38,K38,M38,O38,Q38,S38),"") ->  | V38: =IF(ISNUMBER(AB38)=TRUE,AB38,"") ->  | Z38: 0
A39: 30 | T39: =IF(ISNUMBER(D39)=TRUE,SUM(D39,F39,H39,J39,L39,N39,P39,R39),"") ->  | U39: =IF(ISNUMBER(E39)=TRUE,SUM(E39,G39,I39,K39,M39,O39,Q39,S39),"") ->  | V39: =IF(ISNUMBER(AB39)=TRUE,AB39,"") ->  | Z39: 0
A40: 31 | T40: =IF(ISNUMBER(D40)=TRUE,SUM(D40,F40,H40,J40,L40,N40,P40,R40),"") ->  | U40: =IF(ISNUMBER(E40)=TRUE,SUM(E40,G40,I40,K40,M40,O40,Q40,S40),"") ->  | V40: =IF(ISNUMBER(AB40)=TRUE,AB40,"") ->  | Z40: 0
A41: 32 | T41: =IF(ISNUMBER(D41)=TRUE,SUM(D41,F41,H41,J41,L41,N41,P41,R41),"") ->  | U41: =IF(ISNUMBER(E41)=TRUE,SUM(E41,G41,I41,K41,M41,O41,Q41,S41),"") ->  | V41: =IF(ISNUMBER(AB41)=TRUE,AB41,"") ->  | Z41: 0
A42: 33 | T42: =IF(ISNUMBER(D42)=TRUE,SUM(D42,F42,H42,J42,L42,N42,P42,R42),"") ->  | U42: =IF(ISNUMBER(E42)=TRUE,SUM(E42,G42,I42,K42,M42,O42,Q42,S42),"") ->  | V42: =IF(ISNUMBER(AB42)=TRUE,AB42,"") ->  | W42: =IF(ISNUMBER(V42)=TRUE,1,"") ->  | Z42: 0
A43: 34 | T43: =IF(ISNUMBER(D43)=TRUE,SUM(D43,F43,H43,J43,L43,N43,P43,R43),"") ->  | U43: =IF(ISNUMBER(E43)=TRUE,SUM(E43,G43,I43,K43,M43,O43,Q43,S43),"") ->  | V43: =IF(ISNUMBER(AB43)=TRUE,AB43,"") ->  | Z43: 0
A44: 35 | T44: =IF(ISNUMBER(D44)=TRUE,SUM(D44,F44,H44,J44,L44,N44,P44,R44),"") ->  | U44: =IF(ISNUMBER(E44)=TRUE,SUM(E44,G44,I44,K44,M44,O44,Q44,S44),"") ->  | V44: =IF(ISNUMBER(AB44)=TRUE,AB44,"") ->  | Z44: 0
A45: 36 | T45: =IF(ISNUMBER(D45)=TRUE,SUM(D45,F45,H45,J45,L45,N45,P45,R45),"") ->  | U45: =IF(ISNUMBER(E45)=TRUE,SUM(E45,G45,I45,K45,M45,O45,Q45,S45),"") ->  | V45: =IF(ISNUMBER(AB45)=TRUE,AB45,"") ->  | Z45: 0
A46: 37 | T46: =IF(ISNUMBER(D46)=TRUE,SUM(D46,F46,H46,J46,L46,N46,P46,R46),"") ->  | U46: =IF(ISNUMBER(E46)=TRUE,SUM(E46,G46,I46,K46,M46,O46,Q46,S46),"") ->  | V46: =IF(ISNUMBER(AB46)=TRUE,AB46,"") ->  | Z46: 0
A47: 38 | T47: =IF(ISNUMBER(D47)=TRUE,SUM(D47,F47,H47,J47,L47,N47,P47,R47),"") ->  | U47: =IF(ISNUMBER(E47)=TRUE,SUM(E47,G47,I47,K47,M47,O47,Q47,S47),"") ->  | V47: =IF(ISNUMBER(AB47)=TRUE,AB47,"") ->  | Z47: 0
A48: 39 | T48: =IF(ISNUMBER(D48)=TRUE,SUM(D48,F48,H48,J48,L48,N48,P48,R48),"") ->  | U48: =IF(ISNUMBER(E48)=TRUE,SUM(E48,G48,I48,K48,M48,O48,Q48,S48),"") ->  | V48: =IF(ISNUMBER(AB48)=TRUE,AB48,"") ->  | Z48: 0
A49: 40 | T49: =IF(ISNUMBER(D49)=TRUE,SUM(D49,F49,H49,J49,L49,N49,P49,R49),"") ->  | U49: =IF(ISNUMBER(E49)=TRUE,SUM(E49,G49,I49,K49,M49,O49,Q49,S49),"") ->  | V49: =IF(ISNUMBER(AB49)=TRUE,AB49,"") ->  | Z49: 0
A50: 41 | T50: =IF(ISNUMBER(D50)=TRUE,SUM(D50,F50,H50,J50,L50,N50,P50,R50),"") ->  | U50: =IF(ISNUMBER(E50)=TRUE,SUM(E50,G50,I50,K50,M50,O50,Q50,S50),"") ->  | V50: =IF(ISNUMBER(AB50)=TRUE,AB50,"") ->  | Z50: 0
A51: 42 | T51: =IF(ISNUMBER(D51)=TRUE,SUM(D51,F51,H51,J51,L51,N51,P51,R51),"") ->  | U51: =IF(ISNUMBER(E51)=TRUE,SUM(E51,G51,I51,K51,M51,O51,Q51,S51),"") ->  | V51: =IF(ISNUMBER(AB51)=TRUE,AB51,"") ->  | Z51: 0
A52: 43 | T52: =IF(ISNUMBER(D52)=TRUE,SUM(D52,F52,H52,J52,L52,N52,P52,R52),"") ->  | U52: =IF(ISNUMBER(E52)=TRUE,SUM(E52,G52,I52,K52,M52,O52,Q52,S52),"") ->  | V52: =IF(ISNUMBER(AB52)=TRUE,AB52,"") ->  | Z52: 0
A53: 44 | T53: =IF(ISNUMBER(D53)=TRUE,SUM(D53,F53,H53,J53,L53,N53,P53,R53),"") ->  | U53: =IF(ISNUMBER(E53)=TRUE,SUM(E53,G53,I53,K53,M53,O53,Q53,S53),"") ->  | V53: =IF(ISNUMBER(AB53)=TRUE,AB53,"") ->  | Z53: 0
A54: 45 | T54: =IF(ISNUMBER(D54)=TRUE,SUM(D54,F54,H54,J54,L54,N54,P54,R54),"") ->  | U54: =IF(ISNUMBER(E54)=TRUE,SUM(E54,G54,I54,K54,M54,O54,Q54,S54),"") ->  | V54: =IF(ISNUMBER(AB54)=TRUE,AB54,"") ->  | Z54: 0
A55: 46 | T55: =IF(ISNUMBER(D55)=TRUE,SUM(D55,F55,H55,J55,L55,N55,P55,R55),"") ->  | U55: =IF(ISNUMBER(E55)=TRUE,SUM(E55,G55,I55,K55,M55,O55,Q55,S55),"") ->  | V55: =IF(ISNUMBER(AB55)=TRUE,AB55,"") ->  | Z55: 0
A56: 47 | T56: =IF(ISNUMBER(D56)=TRUE,SUM(D56,F56,H56,J56,L56,N56,P56,R56),"") ->  | U56: =IF(ISNUMBER(E56)=TRUE,SUM(E56,G56,I56,K56,M56,O56,Q56,S56),"") ->  | V56: =IF(ISNUMBER(AB56)=TRUE,AB56,"") ->  | Z56: 0
A57: 48 | T57: =IF(ISNUMBER(D57)=TRUE,SUM(D57,F57,H57,J57,L57,N57,P57,R57),"") ->  | U57: =IF(ISNUMBER(E57)=TRUE,SUM(E57,G57,I57,K57,M57,O57,Q57,S57),"") ->  | V57: =IF(ISNUMBER(AB57)=TRUE,AB57,"") ->  | Z57: 0
A58: 49 | T58: =IF(ISNUMBER(D58)=TRUE,SUM(D58,F58,H58,J58,L58,N58,P58,R58),"") ->  | U58: =IF(ISNUMBER(E58)=TRUE,SUM(E58,G58,I58,K58,M58,O58,Q58,S58),"") ->  | V58: =IF(ISNUMBER(AB58)=TRUE,AB58,"") ->  | Z58: 0
A59: 50 | T59: =IF(ISNUMBER(D59)=TRUE,SUM(D59,F59,H59,J59,L59,N59,P59,R59),"") ->  | U59: =IF(ISNUMBER(E59)=TRUE,SUM(E59,G59,I59,K59,M59,O59,Q59,S59),"") ->  | V59: =IF(ISNUMBER(AB59)=TRUE,AB59,"") ->  | Z59: 0
A60: 51 | T60: =IF(ISNUMBER(D60)=TRUE,SUM(D60,F60,H60,J60,L60,N60,P60,R60),"") ->  | U60: =IF(ISNUMBER(E60)=TRUE,SUM(E60,G60,I60,K60,M60,O60,Q60,S60),"") ->  | V60: =IF(ISNUMBER(AB60)=TRUE,AB60,"") ->  | Z60: 0
A61: 52 | T61: =IF(ISNUMBER(D61)=TRUE,SUM(D61,F61,H61,J61,L61,N61,P61,R61),"") ->  | U61: =IF(ISNUMBER(E61)=TRUE,SUM(E61,G61,I61,K61,M61,O61,Q61,S61),"") ->  | V61: =IF(ISNUMBER(AB61)=TRUE,AB61,"") ->  | Z61: 0
A62: 53 | T62: =IF(ISNUMBER(D62)=TRUE,SUM(D62,F62,H62,J62,L62,N62,P62,R62),"") ->  | U62: =IF(ISNUMBER(E62)=TRUE,SUM(E62,G62,I62,K62,M62,O62,Q62,S62),"") ->  | V62: =IF(ISNUMBER(AB62)=TRUE,AB62,"") ->  | Z62: 0
A63: 54 | T63: =IF(ISNUMBER(D63)=TRUE,SUM(D63,F63,H63,J63,L63,N63,P63,R63),"") ->  | U63: =IF(ISNUMBER(E63)=TRUE,SUM(E63,G63,I63,K63,M63,O63,Q63,S63),"") ->  | V63: =IF(ISNUMBER(AB63)=TRUE,AB63,"") ->  | Z63: 0
A64: 55 | T64: =IF(ISNUMBER(D64)=TRUE,SUM(D64,F64,H64,J64,L64,N64,P64,R64),"") ->  | U64: =IF(ISNUMBER(E64)=TRUE,SUM(E64,G64,I64,K64,M64,O64,Q64,S64),"") ->  | V64: =IF(ISNUMBER(AB64)=TRUE,AB64,"") ->  | Z64: 0
A65: 56 | T65: =IF(ISNUMBER(D65)=TRUE,SUM(D65,F65,H65,J65,L65,N65,P65,R65),"") ->  | U65: =IF(ISNUMBER(E65)=TRUE,SUM(E65,G65,I65,K65,M65,O65,Q65,S65),"") ->  | V65: =IF(ISNUMBER(AB65)=TRUE,AB65,"") ->  | Z65: 0
A66: 57 | T66: =IF(ISNUMBER(D66)=TRUE,SUM(D66,F66,H66,J66,L66,N66,P66,R66),"") ->  | U66: =IF(ISNUMBER(E66)=TRUE,SUM(E66,G66,I66,K66,M66,O66,Q66,S66),"") ->  | V66: =IF(ISNUMBER(AB66)=TRUE,AB66,"") ->  | Z66: 0
A67: 58 | T67: =IF(ISNUMBER(D67)=TRUE,SUM(D67,F67,H67,J67,L67,N67,P67,R67),"") ->  | U67: =IF(ISNUMBER(E67)=TRUE,SUM(E67,G67,I67,K67,M67,O67,Q67,S67),"") ->  | V67: =IF(ISNUMBER(AB67)=TRUE,AB67,"") ->  | Z67: 0
A68: 59 | T68: =IF(ISNUMBER(D68)=TRUE,SUM(D68,F68,H68,J68,L68,N68,P68,R68),"") ->  | U68: =IF(ISNUMBER(E68)=TRUE,SUM(E68,G68,I68,K68,M68,O68,Q68,S68),"") ->  | V68: =IF(ISNUMBER(AB68)=TRUE,AB68,"") ->  | Z68: 0
A69: 60 | T69: =IF(ISNUMBER(D69)=TRUE,SUM(D69,F69,H69,J69,L69,N69,P69,R69),"") ->  | U69: =IF(ISNUMBER(E69)=TRUE,SUM(E69,G69,I69,K69,M69,O69,Q69,S69),"") ->  | V69: =IF(ISNUMBER(AB69)=TRUE,AB69,"") ->  | Z69: 0
A70: 61 | T70: =IF(ISNUMBER(D70)=TRUE,SUM(D70,F70,H70,J70,L70,N70,P70,R70),"") ->  | U70: =IF(ISNUMBER(E70)=TRUE,SUM(E70,G70,I70,K70,M70,O70,Q70,S70),"") ->  | V70: =IF(ISNUMBER(AB70)=TRUE,AB70,"") ->  | Z70: 0
A71: 62 | T71: =IF(ISNUMBER(D71)=TRUE,SUM(D71,F71,H71,J71,L71,N71,P71,R71),"") ->  | U71: =IF(ISNUMBER(E71)=TRUE,SUM(E71,G71,I71,K71,M71,O71,Q71,S71),"") ->  | V71: =IF(ISNUMBER(AB71)=TRUE,AB71,"") ->  | X71: =IF(ISNUMBER(T71)=TRUE,T71,"") ->  | Y71: =IF(ISNUMBER(U71)=TRUE,U71,"") ->  | Z71: =MAX(E71,G71,I71,K71,M71,O71,Q71,S71) -> 0
A72: 63 | T72: =IF(ISNUMBER(D72)=TRUE,SUM(D72,F72,H72,J72,L72,N72,P72,R72),"") ->  | U72: =IF(ISNUMBER(E72)=TRUE,SUM(E72,G72,I72,K72,M72,O72,Q72,S72),"") ->  | V72: =IF(ISNUMBER(AB72)=TRUE,AB72,"") ->  | Z72: 0
A73: 64 | T73: =IF(ISNUMBER(D73)=TRUE,SUM(D73,F73,H73,J73,L73,N73,P73,R73),"") ->  | U73: =IF(ISNUMBER(E73)=TRUE,SUM(E73,G73,I73,K73,M73,O73,Q73,S73),"") ->  | V73: =IF(ISNUMBER(AB73)=TRUE,AB73,"") ->  | Z73: 0
A74: 65 | T74: =IF(ISNUMBER(D74)=TRUE,SUM(D74,F74,H74,J74,L74,N74,P74,R74),"") ->  | U74: =IF(ISNUMBER(E74)=TRUE,SUM(E74,G74,I74,K74,M74,O74,Q74,S74),"") ->  | V74: =IF(ISNUMBER(AB74)=TRUE,AB74,"") ->  | W74: =IF(ISNUMBER(V74)=TRUE,1,"") ->  | Z74: 0
A75: 66 | T75: =IF(ISNUMBER(D75)=TRUE,SUM(D75,F75,H75,J75,L75,N75,P75,R75),"") ->  | U75: =IF(ISNUMBER(E75)=TRUE,SUM(E75,G75,I75,K75,M75,O75,Q75,S75),"") ->  | V75: =IF(ISNUMBER(AB75)=TRUE,AB75,"") ->  | Z75: 0 | AA75: =IF(ISNUMBER(X75)=TRUE,X75-Y75/100000-Z75/1000000000,"") ->  | AB75: =IF(ISNUMBER(AA75)=TRUE,RANK(AA75,$AA$10:$AA$95,1),"") -> 
A76: 67 | T76: =IF(ISNUMBER(D76)=TRUE,SUM(D76,F76,H76,J76,L76,N76,P76,R76),"") ->  | U76: =IF(ISNUMBER(E76)=TRUE,SUM(E76,G76,I76,K76,M76,O76,Q76,S76),"") ->  | V76: =IF(ISNUMBER(AB76)=TRUE,AB76,"") ->  | Z76: 0
A77: 68 | T77: =IF(ISNUMBER(D77)=TRUE,SUM(D77,F77,H77,J77,L77,N77,P77,R77),"") ->  | U77: =IF(ISNUMBER(E77)=TRUE,SUM(E77,G77,I77,K77,M77,O77,Q77,S77),"") ->  | V77: =IF(ISNUMBER(AB77)=TRUE,AB77,"") ->  | Z77: 0
A78: 69 | T78: =IF(ISNUMBER(D78)=TRUE,SUM(D78,F78,H78,J78,L78,N78,P78,R78),"") ->  | U78: =IF(ISNUMBER(E78)=TRUE,SUM(E78,G78,I78,K78,M78,O78,Q78,S78),"") ->  | V78: =IF(ISNUMBER(AB78)=TRUE,AB78,"") ->  | Z78: 0
A79: 70 | T79: =IF(ISNUMBER(D79)=TRUE,SUM(D79,F79,H79,J79,L79,N79,P79,R79),"") ->  | U79: =IF(ISNUMBER(E79)=TRUE,SUM(E79,G79,I79,K79,M79,O79,Q79,S79),"") ->  | V79: =IF(ISNUMBER(AB79)=TRUE,AB79,"") ->  | Z79: 0
A80: 71 | T80: =IF(ISNUMBER(D80)=TRUE,SUM(D80,F80,H80,J80,L80,N80,P80,R80),"") ->  | U80: =IF(ISNUMBER(E80)=TRUE,SUM(E80,G80,I80,K80,M80,O80,Q80,S80),"") ->  | V80: =IF(ISNUMBER(AB80)=TRUE,AB80,"") ->  | Z80: 0
A81: 72 | T81: =IF(ISNUMBER(D81)=TRUE,SUM(D81,F81,H81,J81,L81,N81,P81,R81),"") ->  | U81: =IF(ISNUMBER(E81)=TRUE,SUM(E81,G81,I81,K81,M81,O81,Q81,S81),"") ->  | V81: =IF(ISNUMBER(AB81)=TRUE,AB81,"") ->  | Z81: 0
A82: 73 | T82: =IF(ISNUMBER(D82)=TRUE,SUM(D82,F82,H82,J82,L82,N82,P82,R82),"") ->  | U82: =IF(ISNUMBER(E82)=TRUE,SUM(E82,G82,I82,K82,M82,O82,Q82,S82),"") ->  | V82: =IF(ISNUMBER(AB82)=TRUE,AB82,"") ->  | Z82: 0
A83: 74 | T83: =IF(ISNUMBER(D83)=TRUE,SUM(D83,F83,H83,J83,L83,N83,P83,R83),"") ->  | U83: =IF(ISNUMBER(E83)=TRUE,SUM(E83,G83,I83,K83,M83,O83,Q83,S83),"") ->  | V83: =IF(ISNUMBER(AB83)=TRUE,AB83,"") ->  | Z83: 0
A84: 75 | T84: =IF(ISNUMBER(D84)=TRUE,SUM(D84,F84,H84,J84,L84,N84,P84,R84),"") ->  | U84: =IF(ISNUMBER(E84)=TRUE,SUM(E84,G84,I84,K84,M84,O84,Q84,S84),"") ->  | V84: =IF(ISNUMBER(AB84)=TRUE,AB84,"") ->  | Z84: 0
A85: 76 | T85: =IF(ISNUMBER(D85)=TRUE,SUM(D85,F85,H85,J85,L85,N85,P85,R85),"") ->  | U85: =IF(ISNUMBER(E85)=TRUE,SUM(E85,G85,I85,K85,M85,O85,Q85,S85),"") ->  | V85: =IF(ISNUMBER(AB85)=TRUE,AB85,"") ->  | Z85: 0
A86: 77 | T86: =IF(ISNUMBER(D86)=TRUE,SUM(D86,F86,H86,J86,L86,N86,P86,R86),"") ->  | U86: =IF(ISNUMBER(E86)=TRUE,SUM(E86,G86,I86,K86,M86,O86,Q86,S86),"") ->  | V86: =IF(ISNUMBER(AB86)=TRUE,AB86,"") ->  | Z86: 0
A87: 78 | T87: =IF(ISNUMBER(D87)=TRUE,SUM(D87,F87,H87,J87,L87,N87,P87,R87),"") ->  | U87: =IF(ISNUMBER(E87)=TRUE,SUM(E87,G87,I87,K87,M87,O87,Q87,S87),"") ->  | V87: =IF(ISNUMBER(AB87)=TRUE,AB87,"") ->  | Z87: 0
A88: 79 | T88: =IF(ISNUMBER(D88)=TRUE,SUM(D88,F88,H88,J88,L88,N88,P88,R88),"") ->  | U88: =IF(ISNUMBER(E88)=TRUE,SUM(E88,G88,I88,K88,M88,O88,Q88,S88),"") ->  | V88: =IF(ISNUMBER(AB88)=TRUE,AB88,"") ->  | Z88: 0
A89: 80 | T89: =IF(ISNUMBER(D89)=TRUE,SUM(D89,F89,H89,J89,L89,N89,P89,R89),"") ->  | U89: =IF(ISNUMBER(E89)=TRUE,SUM(E89,G89,I89,K89,M89,O89,Q89,S89),"") ->  | V89: =IF(ISNUMBER(AB89)=TRUE,AB89,"") ->  | Z89: 0
A90: 81 | T90: =IF(ISNUMBER(D90)=TRUE,SUM(D90,F90,H90,J90,L90,N90,P90,R90),"") ->  | U90: =IF(ISNUMBER(E90)=TRUE,SUM(E90,G90,I90,K90,M90,O90,Q90,S90),"") ->  | V90: =IF(ISNUMBER(AB90)=TRUE,AB90,"") ->  | Z90: 0
A91: 82 | T91: =IF(ISNUMBER(D91)=TRUE,SUM(D91,F91,H91,J91,L91,N91,P91,R91),"") ->  | U91: =IF(ISNUMBER(E91)=TRUE,SUM(E91,G91,I91,K91,M91,O91,Q91,S91),"") ->  | V91: =IF(ISNUMBER(AB91)=TRUE,AB91,"") ->  | Z91: 0
A92: 83 | T92: =IF(ISNUMBER(D92)=TRUE,SUM(D92,F92,H92,J92,L92,N92,P92,R92),"") ->  | U92: =IF(ISNUMBER(E92)=TRUE,SUM(E92,G92,I92,K92,M92,O92,Q92,S92),"") ->  | V92: =IF(ISNUMBER(AB92)=TRUE,AB92,"") ->  | Z92: 0
A93: 84 | T93: =IF(ISNUMBER(D93)=TRUE,SUM(D93,F93,H93,J93,L93,N93,P93,R93),"") ->  | U93: =IF(ISNUMBER(E93)=TRUE,SUM(E93,G93,I93,K93,M93,O93,Q93,S93),"") ->  | V93: =IF(ISNUMBER(AB93)=TRUE,AB93,"") ->  | Z93: 0
A94: 85 | T94: =IF(ISNUMBER(D94)=TRUE,SUM(D94,F94,H94,J94,L94,N94,P94,R94),"") ->  | U94: =IF(ISNUMBER(E94)=TRUE,SUM(E94,G94,I94,K94,M94,O94,Q94,S94),"") ->  | V94: =IF(ISNUMBER(AB94)=TRUE,AB94,"") ->  | Z94: 0
A95: 86 | T95: =IF(ISNUMBER(D95)=TRUE,SUM(D95,F95,H95,J95,L95,N95,P95,R95),"") ->  | U95: =IF(ISNUMBER(E95)=TRUE,SUM(E95,G95,I95,K95,M95,O95,Q95,S95),"") ->  | V95: =IF(ISNUMBER(AB95)=TRUE,AB95,"") ->  | Z95: 0
